bitfinex-derivatives/quotes_BTCF0:USTF0_20250710
["timestamp","ask_amount","ask_price","bid_price","bid_amount"]
[1752136480607,0.64794141,111360.0,111350.0,0.96707263]
[1752136480801,0.63426141,111360.0,111350.0,0.96707263]
[1752136481406,0.64794141,111360.0,111350.0,0.96707263]
[1752136481607,0.63426141,111360.0,111350.0,0.96707263]
[1752136481907,0.64794141,111360.0,111350.0,0.727249]
[1752136482108,0.64794141,111360.0,111350.0,0.96707263]
[1752136482504,0.64794141,111360.0,111350.0,0.91317191]
[1752136482904,0.72877509,111360.0,111350.0,0.91317191]
[1752136483408,0.72877509,111360.0,111350.0,0.55237191]
[1752136483809,0.72877509,111360.0,111350.0,0.91317191]
[1752136484708,0.72877509,111360.0,111350.0,0.90264482]
[1752136485405,0.72877509,111360.0,111350.0,0.91317193]
[1752136488015,0.72877509,111360.0,111350.0,0.90264482]
[1752136488208,0.72877509,111360.0,111350.0,0.91317193]
[1752136488408,0.72877509,111360.0,111350.0,0.6733483]
[1752136488609,0.72877509,111360.0,111350.0,0.90264482]
[1752136488918,0.72877509,111360.0,111350.0,0.91317193]
[1752136490212,0.72841509,111360.0,111350.0,1.15299556]
[1752136490816,0.71473509,111360.0,111350.0,1.11324556]
[1752136491112,0.72841509,111360.0,111350.0,1.13749556]
[1752136491610,0.71473509,111360.0,111350.0,1.13749556]
[1752136492015,0.72841509,111360.0,111350.0,1.13749556]
[1752136492215,0.71473509,111360.0,111350.0,1.13749556]
[1752136492514,0.72841509,111360.0,111350.0,1.13749556]
[1752136492714,0.64758141,111360.0,111350.0,1.23179719]
[1752136493312,0.08083368,111370.0,111360.0,0.1795368]
[1752136493511,0.9388507,111380.0,111370.0,0.1795207]
[1752136493810,0.9525307,111380.0,111370.0,0.49905067]
[1752136494115,0.8939743,111380.0,111370.0,0.49905067]
[1752136494319,0.1114692,111380.0,111370.0,0.85985067]
[1752136494516,0.73735131,111380.0,111370.0,0.85985067]
[1752136494713,0.73935131,111380.0,111370.0,0.87388538]
[1752136495314,0.65951763,111380.0,111370.0,0.87388538]
[1752136495614,0.74035131,111380.0,111370.0,0.8875137]
[1752136495815,0.65951763,111380.0,111370.0,0.8875137]
[1752136496118,0.64256211,111380.0,111370.0,0.8875137]
[1752136496416,0.72339579,111380.0,111370.0,0.8875137]
[1752136497813,0.72339579,111380.0,111370.0,0.88751364]
[1752136498818,0.72339579,111380.0,111370.0,0.68731001]
[1752136499020,0.90290089,111380.0,111370.0,0.92713364]
[1752136500019,0.90290089,111380.0,111370.0,0.74761294]
[1752136500212,0.88922089,111380.0,111370.0,0.74761294]
[1752136500414,0.90290089,111380.0,111370.0,0.74761294]
[1752136500814,0.88922089,111380.0,111370.0,0.70799294]
[1752136501013,0.88922089,111380.0,111370.0,0.74761294]
[1752136501224,0.90290089,111380.0,111370.0,0.92713454]
[1752136501624,0.88922089,111380.0,111370.0,0.92713454]
[1752136501820,0.90290089,111380.0,111370.0,0.92713454]
[1752136502626,0.82206721,111380.0,111370.0,0.92713454]
[1752136503126,0.82206721,111380.0,111370.0,0.91350622]
[1752136503326,0.90282553,111380.0,111370.0,0.91350622]
[1752136504832,0.90282553,111380.0,111370.0,0.73398462]
[1752136505432,0.90282553,111380.0,111370.0,0.71994997]
[1752136505733,0.90282553,111380.0,111370.0,0.73398468]
[1752136505930,0.90282553,111380.0,111370.0,0.91350618]
[1752136507532,0.90282553,111380.0,111370.0,0.92684969]
[1752136507733,0.90282553,111380.0,111370.0,0.74732819]
[1752136510334,0.90282553,111380.0,111370.0,0.73398468]
[1752136510533,0.90282553,111380.0,111370.0,0.49416105]
[1752136510833,0.90282553,111380.0,111370.0,0.73398468]
[1752136511033,0.90282553,111380.0,111370.0,0.37318468]
[1752136511233,0.88914553,111380.0,111370.0,0.35914997]
[1752136511533,0.90282553,111380.0,111370.0,0.35914997]
[1752136512333,0.82206721,111380.0,111370.0,0.35914997]
[1752136512532,0.90282232,111380.0,111370.0,0.35914997]
[1752136513633,0.90282232,111380.0,111370.0,0.11932634]
[1752136513936,0.90282232,111380.0,111370.0,0.35914997]
[1752136520244,0.90282232,111380.0,111370.0,0.53867217]
[1752136520641,0.90282232,111380.0,111370.0,0.35914997]
[1752136520841,0.90282232,111380.0,111370.0,0.35987997]
[1752136522544,0.92983367,111380.0,111370.0,0.35987997]
[1752136523148,0.92983367,111380.0,111370.0,0.38721455]
[1752136525151,0.92983367,111380.0,111370.0,0.56673675]
[1752136525346,0.92983367,111380.0,111370.0,0.38721455]
[1752136526757,0.95677528,111380.0,111370.0,0.37391495]
[1752136527252,0.77727018,111380.0,111370.0,0.55343725]
[1752136528555,0.77727018,111380.0,111370.0,0.53940227]
[1752136528954,0.64256211,111380.0,111370.0,0.53940227]
[1752136530754,0.77727018,111380.0,111370.0,0.56667431]
[1752136531056,0.64256211,111380.0,111370.0,0.56667431]
[1752136531254,0.62888211,111380.0,111370.0,0.56667431]
[1752136532148,0.64256211,111380.0,111370.0,0.56667431]
[1752136532547,0.70971369,111380.0,111370.0,0.56667431]
[1752136532757,0.72339369,111380.0,111370.0,0.56667431]
[1752136533257,0.72339369,111380.0,111370.0,0.55343709]
[1752136533458,0.64256211,111380.0,111370.0,0.53940227]
[1752136534952,0.72339367,111380.0,111370.0,0.56669089]
[1752136535457,0.72339367,111380.0,111370.0,0.55265592]
[1752136535659,0.72339367,111380.0,111370.0,0.56669089]
[1752136535855,0.72339367,111380.0,111370.0,0.55343724]
[1752136536960,0.72339367,111380.0,111370.0,0.53940227]
[1752136538059,0.75033627,111380.0,111370.0,0.53940227]
[1752136538260,0.64256211,111380.0,111370.0,0.53940227]
[1752136541161,0.62888211,111380.0,111370.0,0.53940227]
[1752136541465,0.75033627,111380.0,111370.0,0.53940227]
[1752136541768,0.64256211,111380.0,111370.0,0.55343708]
[1752136542966,0.64256211,111380.0,111370.0,0.53940227]
[1752136545062,0.75033627,111380.0,111370.0,0.53940227]
[1752136548872,0.64256211,111380.0,111370.0,0.53940227]
[1752136549273,0.72339773,111380.0,111370.0,0.53940227]
[1752136550771,0.70971773,111380.0,111370.0,0.49905227]
[1752136550976,0.72339773,111380.0,111370.0,0.53927227]
[1752136551475,0.70971773,111380.0,111370.0,0.53927227]
[1752136552176,0.72339773,111380.0,111370.0,0.53927227]
[1752136552970,0.64256211,111380.0,111370.0,0.53927227]
[1752136554880,0.75033627,111380.0,111370.0,0.53927227]
[1752136558179,0.75033627,111380.0,111370.0,0.29944864]
[1752136558369,0.75033627,111380.0,111370.0,0.53927227]
[1752136560988,0.73665627,111380.0,111370.0,0.53927227]
[1752136561378,0.75033627,111380.0,111370.0,0.53927227]
[1752136561681,0.73665627,111380.0,111370.0,0.53927227]
[1752136562582,0.64256211,111380.0,111370.0,0.53927227]
[1752136562783,0.72339645,111380.0,111370.0,0.53927227]
[1752136563086,0.72339645,111380.0,111370.0,0.55330713]
[1752136563483,0.72339645,111380.0,111370.0,0.3134835]
[1752136563687,0.72339645,111380.0,111370.0,0.55330713]
[1752136564286,0.64256211,111380.0,111370.0,0.53927227]
[1752136564684,0.64256211,111380.0,111370.0,0.55330713]
[1752136565085,0.64256211,111380.0,111370.0,0.53927227]
[1752136565782,0.02588211,111380.0,111370.0,0.53927227]
[1752136566000,0.64176211,111380.0,111370.0,0.53927227]
[1752136566289,0.64176211,111380.0,111370.0,0.90007227]
[1752136567083,0.02588211,111380.0,111370.0,0.90007227]
[1752136567383,0.64172211,111380.0,111370.0,0.90007227]
[1752136569588,0.72255512,111380.0,111370.0,0.90007227]
[1752136570387,0.64172211,111380.0,111370.0,0.90007227]
[1752136571088,0.62804211,111380.0,111370.0,0.90007227]
[1752136571287,0.64172211,111380.0,111370.0,0.90007227]
[1752136571588,0.62804211,111380.0,111370.0,0.90007227]
[1752136571788,0.64172211,111380.0,111370.0,0.90007227]
[1752136571987,0.72255548,111380.0,111370.0,0.91410698]
[1752136572289,0.08383337,111380.0,111370.0,1.1398959]
[1752136572490,0.08383337,111380.0,111370.0,1.15392955]
[1752136572684,0.003,111380.0,111370.0,1.15392955]
[1752136572885,0.08382269,111380.0,111370.0,1.15392955]
[1752136573086,0.10777416,111390.0,111370.0,0.97440725]
[1752136573286,0.95803304,111400.0,111390.0,0.1794906]
[1752136573491,0.82332497,111400.0,111390.0,0.79656423]
[1752136573790,0.83700497,111400.0,111390.0,0.88373423]
[1752136574188,0.22124497,111400.0,111390.0,0.88373423]
[1752136574391,0.83800497,111400.0,111390.0,0.88373423]
[1752136575288,0.22224497,111400.0,111390.0,0.88373423]
[1752136575590,0.83896497,111400.0,111390.0,0.88373423]
[1752136575794,0.73119081,111400.0,111390.0,0.88373423]
[1752136576796,0.72231626,111400.0,111390.0,1.12355786]
[1752136577186,0.70863626,111400.0,111390.0,1.12355786]
[1752136577391,0.78927594,111400.0,111390.0,1.12355786]
[1752136578289,0.78927594,111400.0,111390.0,1.13692132]
[1752136578489,0.10136287,111400.0,111390.0,1.12355786]
[1752136578695,0.02074078,111400.0,111390.0,1.13681386]
[1752136578897,0.02074078,111400.0,111390.0,1.15081605]
[1752136579397,0.02074078,111400.0,111390.0,1.13681386]
[1752136579792,0.02074078,111400.0,111390.0,1.1367698]
[1752136580792,0.02074078,111400.0,111390.0,1.0965498]
[1752136580992,0.02074078,111400.0,111390.0,1.1191298]
[1752136581192,0.02074078,111400.0,111390.0,1.10591786]
[1752136581699,0.02074078,111400.0,111390.0,1.11913911]
[1752136583100,0.02074078,111400.0,111390.0,1.10591786]
[1752136583504,0.02074078,111400.0,111390.0,0.74511786]
[1752136583702,0.003,111400.0,111390.0,1.48182786]
[1752136583902,0.002,111400.0,111390.0,1.48182786]
[1752136585198,0.002,111400.0,111390.0,1.24200423]
[1752136585404,0.002,111400.0,111390.0,1.48182786]
[1752136589500,0.002,111400.0,111390.0,1.49585772]
[1752136590896,0.002,111400.0,111390.0,1.48074772]
[1752136594100,0.002,111400.0,111390.0,1.46671786]
[1752136594294,0.002,111400.0,111390.0,1.45816796]
[1752136594498,0.002,111400.0,111390.0,1.48074796]
[1752136595104,0.002,111410.0,111400.0,0.1794756]
[1752136595290,0.002,111410.0,111400.0,2.56923649]
[1752136596304,0.001,111410.0,111400.0,2.61410179]
[1752136596500,0.001,111410.0,111400.0,2.62813079]
[1752136596699,0.15255771,111430.0,111420.0,0.1794418]
[1752136597008,0.16623771,111430.0,111420.0,0.65908906]
[1752136597206,0.16623771,111430.0,111420.0,0.72068906]
[1752136597706,0.08561562,111430.0,111420.0,0.72068906]
[1752136598206,0.11661562,111430.0,111420.0,0.72068906]
[1752136598405,0.11961562,111430.0,111420.0,0.2410418]
[1752136598608,0.11961562,111430.0,111420.0,0.72068906]
[1752136598804,0.12161562,111430.0,111420.0,0.72068906]
[1752136599306,0.13079018,111430.0,111420.0,0.72068906]
[1752136599806,0.13079018,111430.0,111420.0,0.75837906]
[1752136600503,0.16389018,111430.0,111420.0,0.75837906]
[1752136600708,0.76451381,111430.0,111420.0,0.44996543]
[1752136600908,0.76451381,111430.0,111420.0,0.41926543]
[1752136601208,0.76451381,111430.0,111420.0,0.43437543]
[1752136601410,0.8314559,111430.0,111420.0,0.41926543]
[1752136601610,0.8451359,111430.0,111420.0,0.43437543]
[1752136602608,0.76451381,111430.0,111420.0,0.43437543]
[1752136604015,0.40371381,111430.0,111420.0,0.43437543]
[1752136604914,0.8314559,111430.0,111420.0,0.41926543]
[1752136605118,0.8451359,111430.0,111420.0,0.44184543]
[1752136605822,1.4603359,111430.0,111420.0,0.44184543]
[1752136606018,1.4603359,111430.0,111420.0,0.45772543]
[1752136606219,1.4603359,111430.0,111420.0,0.44184543]
[1752136606724,1.4603359,111430.0,111420.0,0.45772543]
[1752136607023,1.4603359,111430.0,111420.0,0.44184543]
[1752136607223,0.85971227,111430.0,111420.0,0.45772543]
[1752136607522,1.21851227,111430.0,111420.0,0.45772543]
[1752136607722,1.4583359,111430.0,111420.0,0.45772543]
[1752136608325,1.21651227,111430.0,111420.0,0.45772543]
[1752136608524,1.4563359,111430.0,111420.0,0.45772543]
[1752136610125,1.0955359,111430.0,111420.0,0.45772543]
[1752136610826,1.0818559,111430.0,111420.0,0.45809543]
[1752136611326,1.0818559,111430.0,111420.0,0.69791906]
[1752136612626,1.00123381,111430.0,111420.0,0.69791906]
[1752136613330,1.0818559,111430.0,111420.0,0.69791906]
[1752136613817,1.0818559,111430.0,111420.0,0.45809543]
[1752136614626,1.4426559,111430.0,111420.0,0.45809543]
[1752136617330,1.4426559,111430.0,111420.0,0.48969543]
[1752136617730,1.0818559,111430.0,111420.0,0.48969543]
[1752136617931,1.4426559,111430.0,111420.0,0.48969543]
[1752136618329,1.4426559,111430.0,111420.0,0.52109543]
[1752136618831,1.0818559,111430.0,111420.0,0.52109543]
[1752136619130,1.0487559,111430.0,111420.0,0.52109543]
[1752136619732,1.0487559,111430.0,111420.0,0.76091906]
[1752136619933,0.80893227,111430.0,111420.0,0.76091906]
[1752136620133,1.0487559,111430.0,111420.0,0.76091906]
[1752136620725,1.0487559,111430.0,111420.0,0.72208906]
[1752136620933,1.0487559,111430.0,111420.0,0.76091906]
[1752136621733,0.80893227,111430.0,111420.0,0.2812718]
[1752136621934,1.0177559,111430.0,111420.0,0.76091906]
[1752136622531,0.4025559,111430.0,111420.0,0.76091906]
[1752136622736,0.07293562,111430.0,111420.0,1.12171906]
[1752136623036,0.08661562,111430.0,111420.0,1.12171906]
[1752136624940,0.08661562,111430.0,111420.0,2.35183906]
[1752136625538,0.19438978,111430.0,111420.0,2.35183906]
[1752136627241,0.08661562,111430.0,111420.0,1.8721918]
[1752136627444,0.08661562,111430.0,111420.0,2.35183906]
[1752136630838,0.07293562,111430.0,111420.0,2.33595906]
[1752136631047,0.08661562,111430.0,111420.0,2.33595906]
[1752136631347,0.07293562,111430.0,111420.0,2.33595906]
[1752136631548,0.08661562,111430.0,111420.0,2.33595906]
[1752136631750,0.07293562,111430.0,111420.0,2.33595906]
[1752136632048,0.32643925,111430.0,111420.0,1.8563118]
[1752136632248,0.32643925,111430.0,111420.0,2.09613543]
[1752136632451,0.08661562,111430.0,111420.0,2.33595906]
[1752136632648,0.16736798,111430.0,111420.0,2.33595906]
[1752136636341,0.16736798,111430.0,111420.0,2.34937223]
[1752136638643,0.40719161,111430.0,111420.0,2.34937223]
[1752136639350,0.16736798,111430.0,111420.0,2.34937223]
[1752136639758,0.16736798,111430.0,111420.0,2.35037223]
[1752136639953,0.40719161,111430.0,111420.0,2.35037223]
[1752136640249,0.16736798,111430.0,111420.0,1.87072497]
[1752136640554,0.16636798,111430.0,111420.0,2.35037223]
[1752136640756,0.15268798,111430.0,111420.0,2.32742223]
[1752136640955,0.15268798,111430.0,111420.0,2.35089223]
[1752136642355,0.15268798,111430.0,111420.0,2.33747906]
[1752136643657,0.07193562,111430.0,111420.0,2.33747906]
[1752136643956,1.3556913,111440.0,111430.0,0.1794261]
[1752136644256,1.3556913,111440.0,111430.0,0.49029973]
[1752136645353,1.42852808,111440.0,111430.0,0.49029973]
[1752136645657,1.42952808,111440.0,111430.0,0.49029973]
[1752136646153,1.18970445,111440.0,111430.0,0.2832761]
[1752136646353,1.42952808,111440.0,111430.0,0.52309973]
[1752136648058,1.34877572,111440.0,111430.0,0.52309973]
[1752136648259,1.42954504,111440.0,111430.0,0.52309973]
[1752136648459,1.18972141,111440.0,111430.0,0.52309973]
[1752136648655,1.42954504,111440.0,111430.0,0.52309973]
[1752136649250,1.45654988,111440.0,111430.0,0.52309973]
[1752136649962,1.21672625,111440.0,111430.0,0.52309973]
[1752136650159,1.45654988,111440.0,111430.0,0.52309973]
[1752136650557,1.21672625,111440.0,111430.0,0.2832761]
[1752136650757,1.45654988,111440.0,111430.0,0.48424973]
[1752136650963,1.45654988,111440.0,111430.0,0.52309973]
[1752136651263,1.21672625,111440.0,111430.0,0.52309973]
[1752136651462,1.45654988,111440.0,111430.0,0.52309973]
[1752136651962,1.45654988,111440.0,111430.0,0.2832761]
[1752136652160,1.21672625,111440.0,111430.0,0.52309973]
[1752136652664,1.45654988,111440.0,111430.0,0.52309973]
[1752136653265,1.21672625,111440.0,111430.0,0.52309973]
[1752136653462,1.45654988,111440.0,111430.0,0.52309973]
[1752136653661,1.21672625,111440.0,111430.0,0.52309973]
[1752136654161,1.45654988,111440.0,111430.0,0.52309973]
[1752136657064,1.21672625,111440.0,111430.0,0.52309973]
[1752136657263,1.45654988,111440.0,111430.0,0.52309973]
[1752136657458,1.34877572,111440.0,111430.0,0.48424973]
[1752136657661,1.34877572,111440.0,111430.0,0.52309973]
[1752136657868,1.76800955,111440.0,111430.0,0.52309973]
[1752136658364,1.58859935,111440.0,111430.0,0.52309973]
[1752136659465,1.10895209,111440.0,111430.0,0.52309973]
[1752136659667,1.58859935,111440.0,111430.0,0.52309973]
[1752136660567,1.84880508,111440.0,111430.0,0.10385]
[1752136660873,1.84880508,111440.0,111430.0,0.08038]
[1752136661773,1.66939498,111440.0,111430.0,0.2598062]
[1752136662163,1.66939498,111440.0,111430.0,0.49962983]
[1752136662474,1.84880508,111440.0,111430.0,0.49962983]
[1752136662773,1.87578361,111440.0,111430.0,0.49962983]
[1752136663174,1.87578361,111440.0,111430.0,0.5131117]
[1752136663370,1.87578361,111440.0,111430.0,0.49962983]
[1752136663574,1.87578361,111440.0,111430.0,0.51311127]
[1752136665172,1.87578361,111440.0,111430.0,0.33368507]
[1752136665377,1.87578361,111440.0,111430.0,0.09386144]
[1752136666781,1.87578361,111440.0,111430.0,0.10788978]
[1752136666982,1.87578361,111440.0,111430.0,0.28731598]
[1752136667683,1.87578361,111440.0,111430.0,0.10788978]
[1752136668287,1.90271752,111440.0,111430.0,0.08038]
[1752136668983,1.76800945,111440.0,111430.0,0.09440831]
[1752136670885,1.76800945,111440.0,111430.0,0.09502831]
[1752136673892,1.87571604,111440.0,111430.0,0.081]
[1752136676795,1.87547604,111440.0,111430.0,0.081]
[1752136678289,1.26063604,111440.0,111430.0,0.081]
[1752136678490,1.87543604,111440.0,111430.0,0.081]
[1752136679496,1.87543604,111440.0,111430.0,0.32082363]
[1752136680797,1.87543604,111440.0,111430.0,0.30482363]
[1752136681097,1.87543604,111440.0,111430.0,0.32082363]
[1752136682200,0.78098878,111440.0,111430.0,0.32082363]
[1752136682401,1.64929241,111440.0,111430.0,0.32082363]
[1752136683401,1.54158582,111440.0,111430.0,0.32082363]
[1752136683601,1.49700582,111440.0,111430.0,0.34338363]
[1752136684304,1.49700582,111440.0,111430.0,0.52281283]
[1752136684901,1.49700582,111440.0,111430.0,0.34338363]
[1752136685803,1.07777209,111440.0,111430.0,0.52281283]
[1752136686004,1.31759572,111440.0,111430.0,0.52281283]
[1752136689102,1.31759572,111440.0,111430.0,0.2829892]
[1752136689303,1.31759572,111440.0,111430.0,0.52281283]
[1752136689806,0.95679572,111440.0,111430.0,0.52281283]
[1752136690006,1.42530231,111440.0,111430.0,0.52281283]
[1752136690605,1.42530231,111440.0,111430.0,0.34338363]
[1752136690900,1.18547868,111440.0,111430.0,0.34338363]
[1752136691105,1.42530231,111440.0,111430.0,0.34338363]
[1752136691307,1.60471541,111440.0,111430.0,0.34338363]
[1752136692806,1.60471541,111440.0,111430.0,0.32082363]
[1752136694105,1.24391541,111440.0,111430.0,0.32082363]
[1752136694308,1.60471541,111440.0,111430.0,0.32082363]
[1752136694808,1.49700882,111440.0,111430.0,0.32082363]
[1752136695008,1.49700882,111440.0,111430.0,0.50025283]
[1752136695207,1.49700882,111440.0,111430.0,0.52281283]
[1752136695509,1.60471541,111440.0,111430.0,0.52281283]
[1752136695909,1.31759572,111440.0,111430.0,0.52281283]
[1752136696410,0.46297209,111440.0,111430.0,0.52281283]
[1752136696708,1.31751572,111440.0,111430.0,0.52281283]
[1752136697610,1.31751572,111440.0,111430.0,0.50025283]
[1752136698910,1.07769209,111440.0,111430.0,0.50025283]
[1752136699111,1.42522231,111440.0,111430.0,0.50025283]
[1752136699806,1.18539868,111440.0,111430.0,0.50025283]
[1752136700011,1.42522231,111440.0,111430.0,0.31995363]
[1752136700213,1.60463541,111440.0,111430.0,0.31995363]
[1752136701910,0.98991541,111440.0,111430.0,0.31995363]
[1752136702110,1.61827541,111440.0,111430.0,0.31995363]
[1752136702314,1.60459541,111440.0,111430.0,0.31995363]
[1752136703412,1.60459541,111440.0,111430.0,0.48425283]
[1752136703619,1.31747572,111440.0,111430.0,0.49938283]
[1752136704016,1.49688882,111440.0,111430.0,0.49938283]
[1752136704216,1.13608882,111440.0,111430.0,0.49938283]
[1752136705117,1.24379541,111440.0,111430.0,0.49938283]
[1752136705419,1.60459541,111440.0,111430.0,0.49938283]
[1752136705616,1.60459541,111440.0,111430.0,0.31995363]
[1752136706220,1.36477178,111440.0,111430.0,0.31995363]
[1752136706520,1.60459541,111440.0,111430.0,0.31995363]
[1752136707522,1.36477178,111440.0,111430.0,0.31995363]
[1752136707823,1.42514231,111440.0,111430.0,0.49938283]
[1752136708017,1.42514231,111440.0,111430.0,0.2595592]
[1752136708218,1.42514231,111440.0,111430.0,0.49938283]
[1752136708415,1.60455541,111440.0,111430.0,0.49938283]
[1752136709024,1.36473178,111440.0,111430.0,0.49938283]
[1752136709325,1.60455541,111440.0,111430.0,0.49938283]
[1752136709522,1.18531868,111440.0,111430.0,0.49938283]
[1752136709722,1.42514231,111440.0,111430.0,0.49938283]
[1752136710125,1.18531868,111440.0,111430.0,0.49938283]
[1752136710325,1.31743572,111440.0,111430.0,0.52236283]
[1752136710926,1.31743572,111440.0,111430.0,0.49938283]
[1752136711427,1.31743572,111440.0,111430.0,0.2595592]
[1752136711815,1.31743572,111440.0,111430.0,0.49938283]
[1752136712226,1.31743572,111440.0,111430.0,0.2595592]
[1752136712829,1.31743572,111440.0,111430.0,0.49938283]
[1752136713331,1.31743572,111440.0,111430.0,0.31995363]
[1752136713527,1.31743572,111440.0,111430.0,0.49938093]
[1752136714030,1.31743572,111440.0,111430.0,0.31995363]
[1752136714232,1.42514952,111440.0,111430.0,0.31995363]
[1752136714433,1.42514952,111440.0,111430.0,0.49937903]
[1752136714624,1.18532589,111440.0,111430.0,0.49937903]
[1752136714923,1.06434952,111440.0,111430.0,0.49937903]
[1752136715528,1.06383044,111440.0,111430.0,0.49937903]
[1752136715929,1.42463044,111440.0,111430.0,0.49937903]
[1752136716131,1.42463044,111440.0,111430.0,0.31995363]
[1752136717330,1.60403934,111440.0,111430.0,0.31995363]
[1752136719137,1.42463044,111440.0,111430.0,0.49937833]
[1752136719538,1.42463044,111440.0,111430.0,0.31995363]
[1752136719836,1.42463044,111440.0,111430.0,0.49937843]
[1752136720235,1.06383044,111440.0,111430.0,0.49937843]
[1752136720734,1.42463044,111440.0,111430.0,0.48424843]
[1752136720939,1.42463044,111440.0,111430.0,0.49937843]
[1752136721236,1.06383044,111440.0,111430.0,0.49937843]
[1752136721440,1.42463044,111440.0,111430.0,0.49937843]
[1752136722738,1.39770188,111440.0,111430.0,0.49937843]
[1752136722931,1.31691664,111440.0,111430.0,0.49937843]
[1752136723432,0.95611664,111440.0,111430.0,0.49937843]
[1752136723638,1.33059664,111440.0,111430.0,0.49937843]
[1752136724433,1.09077301,111440.0,111430.0,0.49937843]
[1752136724634,1.33059664,111440.0,111430.0,0.49937843]
[1752136724937,1.33059664,111440.0,111430.0,0.31995363]
[1752136725638,1.33059664,111440.0,111430.0,0.08013]
[1752136725932,0.50673301,111440.0,111430.0,0.49937893]
[1752136726149,1.33051664,111440.0,111430.0,0.49937893]
[1752136726350,1.31683664,111440.0,111430.0,0.49937893]
[1752136726642,0.95603664,111440.0,111430.0,0.08013]
[1752136726947,1.31683664,111440.0,111430.0,0.31995363]
[1752136727450,1.07701301,111440.0,111430.0,0.31995363]
[1752136727649,1.31683664,111440.0,111430.0,0.31995363]
[1752136728150,1.42455044,111440.0,111430.0,0.31995363]
[1752136730846,1.42455044,111440.0,111430.0,0.32006363]
[1752136731150,1.31683664,111440.0,111430.0,0.32006363]
[1752136731549,1.07701301,111440.0,111430.0,0.32006363]
[1752136731858,1.42455044,111440.0,111430.0,0.32006363]
[1752136732550,1.31683664,111440.0,111430.0,0.32006363]
[1752136733154,1.07701301,111440.0,111430.0,0.08024]
[1752136733370,0.46245301,111440.0,111430.0,0.2596655]
[1752136733654,1.17144772,111440.0,111430.0,0.52277913]
[1752136733855,1.41127135,111440.0,111430.0,0.52277913]
[1752136734262,1.15776772,111440.0,111430.0,0.2444255]
[1752136734446,1.39759135,111440.0,111430.0,0.49948913]
[1752136734758,1.39759135,111440.0,111430.0,0.2596655]
[1752136734950,1.39759135,111440.0,111430.0,0.49948913]
[1752136735150,1.15776772,111440.0,111430.0,0.49948913]
[1752136735355,1.39759135,111440.0,111430.0,0.49948913]
[1752136735557,1.15776772,111440.0,111430.0,0.2596655]
[1752136735757,1.39759135,111440.0,111430.0,0.2596655]
[1752136736054,0.10061604,111440.0,111430.0,1.98326072]
[1752136736257,0.1006024,111440.0,111430.0,1.98786914]
[1752136736761,0.1006024,111440.0,111430.0,2.00189622]
[1752136737053,0.1006024,111440.0,111430.0,2.00189621]
[1752136737259,0.1006024,111440.0,111430.0,1.98786914]
[1752136737460,0.1006024,111440.0,111430.0,2.00189621]
[1752136737858,0.1006024,111440.0,111430.0,2.02354855]
[1752136738660,0.1006024,111440.0,111430.0,2.02354097]
[1752136739457,0.01982133,111440.0,111430.0,2.02354097]
[1752136739662,0.01982133,111440.0,111430.0,2.38434097]
[1752136740863,0.01982133,111440.0,111430.0,2.36105097]
[1752136741162,0.01982133,111440.0,111430.0,2.38434097]
[1752136742464,0.003,111440.0,111430.0,2.38434097]
[1752136742857,0.08378107,111440.0,111430.0,2.38434097]
[1752136743061,0.71344236,111450.0,111440.0,0.1794077]
[1752136743062,0.10865465,111450.0,111440.0,0.1794077]
[1752136743263,0.10865465,111450.0,111440.0,1.09048496]
[1752136743455,0.02793591,111450.0,111440.0,1.12288496]
[1752136744556,0.02893591,111450.0,111440.0,1.12288496]
[1752136744961,0.01974285,111450.0,111440.0,1.12288496]
[1752136749356,0.003,111450.0,111440.0,1.12288496]
[1752136749754,0.01702962,111470.0,111460.0,0.1793764]
[1752136749958,0.01702962,111470.0,111460.0,1.92715366]
[1752136750160,0.27053325,111470.0,111460.0,1.75053003]
[1752136750356,0.25685325,111470.0,111460.0,0.2425764]
[1752136750561,0.25685325,111470.0,111460.0,0.2811064]
[1752136750855,0.03070962,111470.0,111460.0,0.52093003]
[1752136751054,0.44989345,111470.0,111460.0,0.34155363]
[1752136751260,1.24917325,111470.0,111460.0,0.2578163]
[1752136751559,1.46013345,111470.0,111460.0,0.31826363]
[1752136751964,1.04094962,111470.0,111460.0,0.0316]
[1752136752166,1.49073325,111470.0,111460.0,0.28666363]
[1752136752366,0.88484549,111470.0,111460.0,0.28666363]
[1752136752564,1.50008549,111470.0,111460.0,0.01524]
[1752136752764,1.60779929,111470.0,111460.0,0.01524]
[1752136753064,1.60979929,111470.0,111460.0,0.01524]
[1752136753968,1.59611929,111470.0,111450.0,0.65914475]
[1752136754167,0.25350363,111460.0,111450.0,0.62953715]
[1752136754569,0.23982363,111460.0,111450.0,0.67438475]
[1752136754962,0.70842186,111470.0,111450.0,0.67438475]
[1752136755158,0.25350363,111460.0,111450.0,1.03518475]
[1752136756359,0.25350363,111460.0,111450.0,0.67438475]
[1752136756870,0.25450363,111460.0,111450.0,0.67438475]
[1752136757171,0.25450363,111460.0,111450.0,0.58468955]
[1752136758063,0.01468,111460.0,111450.0,0.58468955]
[1752136758263,0.86946363,111460.0,111450.0,0.58468955]
[1752136758463,0.86934363,111460.0,111450.0,0.58468955]
[1752136759268,0.8088962,111460.0,111450.0,0.53984495]
[1752136759471,1.04871983,111460.0,111450.0,0.53984495]
[1752136760866,1.03503983,111460.0,111450.0,0.54210495]
[1752136761570,0.85566363,111460.0,111450.0,0.54210495]
[1752136761761,0.86934363,111460.0,111450.0,0.54210495]
[1752136762166,0.90264363,111460.0,111450.0,0.54210495]
[1752136762372,1.26344363,111460.0,111450.0,0.04911222]
[1752136762571,0.93584363,111460.0,111450.0,0.48490795]
[1752136762774,1.29664363,111460.0,111450.0,0.30551585]
[1752136763374,1.47601963,111460.0,111450.0,0.48490725]
[1752136764973,1.47601813,111460.0,111450.0,0.48490725]
[1752136765975,0.92216363,111460.0,111450.0,0.48490725]
[1752136766175,0.93584363,111460.0,111450.0,0.48490725]
[1752136768475,0.93584363,111460.0,111450.0,0.50911725]
[1752136769075,0.93584363,111460.0,111450.0,0.54883085]
[1752136769468,1.68264276,111460.0,111450.0,0.11943045]
[1752136769777,1.68264276,111460.0,111450.0,0.07285045]
[1752136770070,1.71454276,111460.0,111450.0,0.07285045]
[1752136770466,1.71454276,111460.0,111450.0,0.05882582]
[1752136770873,1.70086276,111460.0,111450.0,0.31522945]
[1752136771064,1.70086276,111460.0,111450.0,0.0397136]
[1752136771265,1.08602276,111460.0,111450.0,0.05811719]
[1752136771467,1.70901276,111460.0,111450.0,0.05805075]
[1752136771669,1.78952583,111460.0,111450.0,0.01840359]
[1752136773875,1.30987857,111460.0,111450.0,0.01840359]
[1752136774177,1.78952583,111460.0,111450.0,0.01840359]
[1752136778377,1.80333735,111460.0,111450.0,0.01840359]
[1752136779982,1.88399688,111460.0,111450.0,0.01840359]
[1752136780585,0.78990962,111460.0,111450.0,0.01840359]
[1752136780883,1.55496372,111460.0,111450.0,0.25822722]
[1752136781084,1.80846735,111460.0,111450.0,0.28982722]
[1752136781283,1.80846735,111460.0,111450.0,0.05000359]
[1752136782084,1.19402735,111460.0,111450.0,0.05000359]
[1752136782384,1.56864372,111460.0,111450.0,0.05000359]
[1752136785696,1.32882009,111460.0,111450.0,0.05000359]